fUST/lending_fUST_20251002
["ID","MTS","AMOUNT","RATE_DAILY","PERIOD"]
[388722751,1759335057547,-1845.75,0.00021643,2]
[388722752,1759335057558,-500.0,0.00021643,2]
[388722753,1759335057568,-500.0,0.00021643,2]
[388722754,1759335057578,-696.0,0.00021643,2]
[388722755,1759335057589,-1315.22,0.00021643,2]
[388722756,1759335057598,-500.0,0.00021643,2]
[388722757,1759335057609,-2639.23,0.00021643,2]
[388722758,1759335057618,-500.0,0.00021643,2]
[388722759,1759335057628,-504.31,0.00021643,2]
[388722760,1759335057638,-1397.47,0.00021643,2]
[388722761,1759335057648,-500.0,0.00021643,2]
[388722762,1759335057657,-786.61,0.00021643,2]
[388722763,1759335057667,-500.0,0.00021643,2]
[388722764,1759335057676,-6859.71,0.00021643,2]
[388722765,1759335057686,-500.0,0.00021643,2]
[388722766,1759335057695,-848.92,0.00021643,2]
[388722767,1759335057704,-1394.86,0.00021643,2]
[388722768,1759335057713,-818.92,0.00021643,2]
[388722769,1759335057722,-1705.81,0.00021643,2]
[388722770,1759335057731,-500.0,0.00021643,2]
[388722771,1759335057740,-223.42570033,0.00021643,2]
[388722772,1759335057750,-500.0,0.00021643,2]
[388722773,1759335057759,-670.79,0.00021643,2]
[388722774,1759335057768,-857.73,0.00021643,2]
[388722775,1759335057778,-606.05443333,0.00021643,2]
[388722776,1759335057787,-500.0,0.00021643,2]
[388722777,1759335057796,-643.98,0.00021643,2]
[388722778,1759335057806,-500.0,0.00021643,2]
[388722779,1759335057815,-1015.09,0.00021643,2]
[388722780,1759335057828,-500.0,0.00021643,2]
[388722781,1759335057837,-870.52,0.00021643,2]
[388722782,1759335057847,-610.48,0.00021643,2]
[388722783,1759335057857,-774.99,0.00021643,2]
[388722784,1759335057867,-500.0,0.00021643,2]
[388722785,1759335057877,-692.94,0.00021643,2]
[388722786,1759335057887,-500.0,0.00021643,2]
[388722787,1759335057896,-500.0,0.00021643,2]
[388722788,1759335057907,-943.16,0.00021643,2]
[388722789,1759335057916,-500.0,0.00021643,2]
[388722790,1759335057925,-500.0,0.00021643,2]
[388722791,1759335057935,-613.54,0.00021643,2]
[388722792,1759335057944,-1171.23,0.00021643,2]
[388722793,1759335057954,-1988.09,0.00021643,2]
[388722794,1759335057964,-1268.9,0.00021643,2]
[388722795,1759335057974,-696.81,0.00021643,2]
[388722796,1759335057983,-1090.51,0.00021643,2]
[388722797,1759335057993,-2196.17,0.00021643,2]
[388722798,1759335058002,-500.0,0.00021643,2]
[388722799,1759335058011,-3394.81,0.00021643,2]
[388722800,1759335058021,-952.1,0.00021643,2]
[388722801,1759335058029,-774.39,0.00021643,2]
[388722802,1759335058039,-556.67,0.00021643,2]
[388722803,1759335058048,-500.0,0.00021643,2]
[388722804,1759335058058,-863.24,0.00021643,2]
[388722805,1759335058067,-729.16,0.00021643,2]
[388722806,1759335058076,-1104.24,0.00021643,2]
[388722807,1759335058085,-2984.12,0.00021643,2]
[388722808,1759335058094,-1866.99,0.00021643,2]
[388722809,1759335058103,-151.0,0.00021644,2]
[388722810,1759335058112,-151.0,0.00021644,2]
[388722811,1759335058122,-151.0,0.00021644,2]
[388722812,1759335058131,-151.0,0.00021644,2]
[388722813,1759335058141,-201.02697337,0.00021644,2]
[388722814,1759335058150,-151.0,0.00021644,2]
[388722815,1759335058159,-487.0,0.00021644,2]
[388722816,1759335058169,-151.0,0.00021644,2]
[388722817,1759335058177,-151.0,0.00021644,2]
[388722818,1759335058187,-151.0,0.00021644,2]
[388722819,1759335058196,-198.0,0.00021644,2]
[388722820,1759335058205,-547.0,0.00021644,2]
[388722821,1759335058216,-198.0,0.00021644,2]
[388722822,1759335058225,-151.0,0.00021644,2]
[388722823,1759335058235,-151.0,0.00021644,2]
[388722824,1759335058244,-151.0,0.00021644,2]
[388722825,1759335058253,-151.0,0.00021644,2]
[388722826,1759335058263,-2500.0,0.00021664,2]
[388722827,1759335058273,-150.0,0.00021757,2]
[388722828,1759335058283,-150.0,0.00021757,2]
[388722829,1759335058292,-150.0,0.00021757,2]
[388722830,1759335058301,-2728.84163858,0.00021778,2]
[388722831,1759335058310,-150.0,0.00021779,2]
[388722832,1759335058320,-260.527,0.00021779,2]
[388722833,1759335058329,-35262.93097887,0.000218,28]
[388722834,1759335058339,-168.0,0.00021835,2]
[388722835,1759335058348,-1013.86,0.00021873,2]
[388722836,1759335058357,-2062.08,0.00021873,2]
[388722837,1759335058367,-500.0,0.00021873,2]
[388722838,1759335058376,-1521.58,0.00021873,2]
[388722839,1759335058385,-500.0,0.00021873,2]
[388722840,1759335058395,-151.0,0.000219,3]
[388722841,1759335058405,-5030.0,0.00021902,2]
[388722842,1759335058414,-3000.0,0.00021912,2]
[388722843,1759335058424,-500.0,0.00021917,2]
[388722844,1759335058433,-500.0,0.00021917,2]
[388722845,1759335058442,-500.0,0.00021917,2]
[388722846,1759335058451,-500.0,0.00021917,2]
[388722847,1759335058461,-684.19,0.00021917,2]
[388722848,1759335058470,-500.0,0.00021917,2]
[388722849,1759335058479,-500.0,0.00021917,2]
[388722850,1759335058488,-500.0,0.00021917,2]
[388722851,1759335058498,-905.05,0.00021917,2]
[388722852,1759335058508,-500.0,0.00021917,2]
[388722853,1759335058517,-602.37,0.00021917,2]
[388722854,1759335058526,-635.93,0.00021917,2]
[388722855,1759335058536,-625.0,0.00021917,2]
[388722856,1759335058545,-500.0,0.00021917,2]
[388722857,1759335058555,-500.0,0.00021917,2]
[388722858,1759335058564,-500.0,0.00021917,2]
[388722859,1759335058573,-539.8,0.00021917,2]
[388722860,1759335058582,-1062.22,0.00021917,2]
[388722861,1759335058591,-500.0,0.00021917,2]
[388722862,1759335058601,-1377.59,0.00021917,2]
[388722863,1759335058610,-500.0,0.00021917,2]
[388722864,1759335058771,-759.48,0.00021917,2]
[388722865,1759335058781,-500.0,0.00021917,2]
[388722866,1759335058791,-500.0,0.00021917,2]
[388722867,1759335058800,-500.0,0.00021917,2]
[388722868,1759335058810,-500.0,0.00021917,2]
[388722869,1759335058819,-1321.83,0.00021917,2]
[388722870,1759335058831,-802.43,0.00021917,2]
[388722871,1759335058842,-500.0,0.00021917,2]
[388722872,1759335058851,-500.0,0.00021917,2]
[388722873,1759335058860,-646.41,0.00021917,2]
[388722874,1759335058870,-500.0,0.00021917,2]
[388722875,1759335058879,-1135.08,0.00021917,2]
[388722876,1759335058888,-712.18,0.00021917,2]
[388722877,1759335058899,-729.36,0.00021917,2]
[388722878,1759335058909,-500.0,0.00021917,2]
[388722879,1759335058918,-500.0,0.00021917,2]
[388722880,1759335058927,-500.0,0.00021917,2]
[388722881,1759335058937,-500.0,0.00021917,2]
[388722882,1759335058946,-500.0,0.00021917,2]
[388722883,1759335058955,-500.0,0.00021917,2]
[388722884,1759335058966,-500.0,0.00021917,2]
[388722885,1759335058975,-500.0,0.00021917,2]
[388722886,1759335058984,-500.0,0.00021917,2]
[388722887,1759335058993,-500.0,0.00021917,2]
[388722888,1759335059002,-500.0,0.00021917,2]
[388722889,1759335059011,-500.0,0.00021917,2]
[388722890,1759335059021,-700.69,0.00021917,2]
[388722891,1759335059030,-500.15,0.00021917,2]
[388722892,1759335059039,-1425.73,0.00021917,2]
[388722893,1759335059050,-500.0,0.00021917,2]
[388722894,1759335059059,-500.0,0.00021917,2]
[388722895,1759335059069,-500.0,0.00021917,2]
[388722896,1759335059079,-500.0,0.00021917,2]
[388722897,1759335059090,-212.87385897,0.00021917,2]
[388722898,1759335059100,-537.26,0.00021917,2]
[388722899,1759335059110,-500.0,0.00021917,2]
[388722900,1759335059121,-2720.2,0.00021917,2]
[388722901,1759335059132,-500.0,0.00021917,2]
[388722902,1759335059142,-500.0,0.00021917,2]
[388722903,1759335059153,-500.0,0.00021917,2]
[388722904,1759335059165,-3405.88,0.00021917,2]
[388722905,1759335059174,-500.0,0.00021917,2]
[388722906,1759335059183,-1179.53,0.00021917,2]
[388722907,1759335059193,-1218.29,0.00021917,2]
[388722908,1759335059203,-500.0,0.00021917,2]
[388722909,1759335059213,-927.39,0.00021917,2]
[388722910,1759335059222,-896.28,0.00021917,2]
[388722911,1759335059232,-500.0,0.00021917,2]
[388722912,1759335059242,-500.0,0.00021917,2]
[388722913,1759335059251,-500.0,0.00021917,2]
[388722914,1759335059260,-500.0,0.00021917,2]
[388722915,1759335059269,-1845.75,0.00021917,2]
[388722916,1759335059279,-500.0,0.00021917,2]
[388722917,1759335059289,-500.0,0.00021917,2]
[388722918,1759335059298,-696.0,0.00021917,2]
[388722919,1759335059307,-1315.22,0.00021917,2]
[388722920,1759335059316,-500.0,0.00021917,2]
[388722921,1759335059326,-2639.23,0.00021917,2]
[388722922,1759335059336,-500.0,0.00021917,2]
[388722923,1759335059345,-504.31,0.00021917,2]
[388722924,1759335059354,-1397.47,0.00021917,2]
[388722925,1759335059363,-500.0,0.00021917,2]
[388722926,1759335059373,-786.61,0.00021917,2]
[388722927,1759335059382,-500.0,0.00021917,2]
[388722928,1759335059391,-6859.71,0.00021917,2]
[388722929,1759335059401,-500.0,0.00021917,2]
[388722930,1759335059412,-848.92,0.00021917,2]
[388722931,1759335059421,-1394.86,0.00021917,2]
[388722932,1759335059430,-818.92,0.00021917,2]
[388722933,1759335059440,-1705.81,0.00021917,2]
[388722934,1759335059449,-500.0,0.00021917,2]
[388722935,1759335059459,-500.0,0.00021917,2]
[388722936,1759335059469,-670.79,0.00021917,2]
[388722937,1759335059478,-857.73,0.00021917,2]
[388722938,1759335059487,-500.0,0.00021917,2]
[388722939,1759335059498,-643.98,0.00021917,2]
[388722940,1759335059507,-500.0,0.00021917,2]
[388722941,1759335059517,-1015.09,0.00021917,2]
[388722942,1759335059526,-500.0,0.00021917,2]
[388722943,1759335059535,-870.52,0.00021917,2]
[388722944,1759335059545,-610.48,0.00021917,2]
[388722945,1759335059554,-774.99,0.00021917,2]
[388722946,1759335059563,-500.0,0.00021917,2]
[388722947,1759335059572,-692.94,0.00021917,2]
[388722948,1759335059581,-500.0,0.00021917,2]
[388722949,1759335059592,-500.0,0.00021917,2]
[388722950,1759335059601,-943.16,0.00021917,2]
[388722951,1759335059611,-500.0,0.00021917,2]
[388722952,1759335059620,-500.0,0.00021917,2]
[388722953,1759335059630,-613.54,0.00021917,2]
[388722954,1759335059639,-1171.23,0.00021917,2]
[388722955,1759335059648,-1988.09,0.00021917,2]
[388722956,1759335059657,-1268.9,0.00021917,2]
[388722957,1759335059667,-696.81,0.00021917,2]
[388722958,1759335059676,-1090.51,0.00021917,2]
[388722959,1759335059685,-2196.17,0.00021917,2]
[388722960,1759335059694,-500.0,0.00021917,2]
[388722961,1759335059703,-3394.81,0.00021917,2]
[388722962,1759335059712,-952.1,0.00021917,2]
[388722963,1759335059722,-774.39,0.00021917,2]
[388722964,1759335059731,-556.67,0.00021917,2]
[388722965,1759335059741,-500.0,0.00021917,2]
[388722966,1759335059750,-863.24,0.00021917,2]
[388722967,1759335059759,-729.16,0.00021917,2]
[388722968,1759335059769,-1104.24,0.00021917,2]
[388722969,1759335059778,-2984.12,0.00021917,2]
[388722970,1759335059787,-150.0,0.00021918,2]
[388722971,1759335059796,-400.0,0.00021918,2]
[388722972,1759335059806,-198.0,0.00021918,2]
[388722973,1759335059815,-198.0,0.00021918,2]
[388722974,1759335059825,-151.0,0.00021918,2]
[388722975,1759335059839,-198.0,0.00021918,2]
[388722976,1759335059849,-198.0,0.00021918,2]
[388722977,1759335059858,-487.0,0.00021918,2]
[388722978,1759335059867,-151.0,0.00021918,2]
[388722979,1759335059878,-151.0,0.00021918,2]
[388722980,1759335059888,-198.0,0.00021918,2]
[388722981,1759335059897,-151.0,0.00021918,2]
[388722982,1759335059908,-151.0,0.00021918,2]
[388722983,1759335059917,-151.0,0.00021918,2]
[388722984,1759335059927,-151.0,0.00021918,2]
[388722985,1759335059936,-2500.0,0.00021923,2]
[388722986,1759335059945,-3000.0,0.00022,2]
[388722987,1759335059954,-63653.63254964,0.00022,5]
[388722988,1759335060656,-500.0,0.00019178,2]
[388722989,1759335060665,-500.0,0.00019178,2]
[388722990,1759335060673,-464.44,0.00019452,2]
[388722991,1759335060682,-151.0,0.00019721,2]
[388722992,1759335060690,-289.31838239,0.0001999,2]
[388722993,1759335060698,-500.0,0.00020273,2]
[388722994,1759335060707,-500.0,0.00020547,2]
[388722995,1759335060718,-500.0,0.00020821,2]
[388722996,1759335060727,-500.0,0.00021095,2]
[388722997,1759335060737,-1374.41,0.00021369,2]
[388722998,1759335060746,-500.0,0.00021369,2]
[388722999,1759335060755,-151.0,0.0002137,2]
[388723000,1759335060764,-1374.41,0.00021643,2]
[388723001,1759335060774,-500.0,0.00021643,2]
[388723002,1759335060782,-1866.99,0.00021917,2]
[388723003,1759335060792,-1374.41,0.00021917,2]
[388723004,1759335060802,-500.0,0.00021917,2]
[388723005,1759335060812,-36440.29202791,0.00022,5]
[388723006,1759335060822,-356.81902764,0.00022,2]
[388723007,1759335060836,-9132.96,0.00022,2]
[388723008,1759335060847,-4000.0,0.00022,4]
[388723009,1759335060858,-531.0,0.00022072,2]
[388723010,1759335060866,-360.0,0.00022133,2]
[388723011,1759335060876,-1013.86,0.00022147,2]
[388723012,1759335060885,-2062.08,0.00022147,2]
[388723013,1759335060892,-500.0,0.00022147,2]
[388723014,1759335060902,-1521.58,0.00022147,2]
[388723015,1759335060911,-256.64552844,0.00022147,2]
[388723016,1759335060920,-405.8369216,0.00022182,2]
[388723017,1759335060930,-500.0,0.00022191,2]
[388723018,1759335060939,-352.29,0.00022191,2]
[388723019,1759335060948,-500.0,0.00022191,2]
[388723020,1759335060957,-500.0,0.00022191,2]
[388723021,1759335060967,-684.19,0.00022191,2]
[388723022,1759335060976,-500.0,0.00022191,2]
[388723023,1759335060986,-500.0,0.00022191,2]
[388723024,1759335060996,-500.0,0.00022191,2]
[388723025,1759335061006,-905.05,0.00022191,2]
[388723026,1759335061015,-500.0,0.00022191,2]
[388723027,1759335061024,-602.37,0.00022191,2]
[388723028,1759335061034,-635.93,0.00022191,2]
[388723029,1759335061044,-625.0,0.00022191,2]
[388723030,1759335061053,-500.0,0.00022191,2]
[388723031,1759335061062,-500.0,0.00022191,2]
[388723032,1759335061073,-500.0,0.00022191,2]
[388723033,1759335061082,-539.8,0.00022191,2]
[388723034,1759335061091,-1062.22,0.00022191,2]
[388723035,1759335061100,-500.0,0.00022191,2]
[388723036,1759335061109,-1377.59,0.00022191,2]
[388723037,1759335061119,-500.0,0.00022191,2]
[388723038,1759335061128,-759.48,0.00022191,2]
[388723039,1759335061138,-500.0,0.00022191,2]
[388723040,1759335061148,-500.0,0.00022191,2]
[388723041,1759335061157,-233.90784893,0.00022191,2]
[388723042,1759335061166,-500.0,0.00022191,2]
[388723043,1759335061175,-1321.83,0.00022191,2]
[388723044,1759335061185,-802.43,0.00022191,2]
[388723045,1759335061195,-500.0,0.00022191,2]
[388723046,1759335061204,-500.0,0.00022191,2]
[388723047,1759335061214,-646.41,0.00022191,2]
[388723048,1759335061224,-500.0,0.00022191,2]
[388723049,1759335061233,-1135.08,0.00022191,2]
[388723050,1759335061242,-712.18,0.00022191,2]
[388723051,1759335061251,-729.36,0.00022191,2]
[388723052,1759335061259,-500.0,0.00022191,2]
[388723053,1759335061268,-500.0,0.00022191,2]
[388723054,1759335061277,-700.69,0.00022191,2]
[388723055,1759335061286,-500.15,0.00022191,2]
[388723056,1759335061295,-500.0,0.00022191,2]
[388723057,1759335061304,-1425.73,0.00022191,2]
[388723058,1759335061313,-537.26,0.00022191,2]
[388723059,1759335061322,-500.0,0.00022191,2]
[388723060,1759335061330,-500.0,0.00022191,2]
[388723061,1759335061339,-500.0,0.00022191,2]
[388723062,1759335061348,-500.0,0.00022191,2]
[388723063,1759335061357,-3405.88,0.00022191,2]
[388723064,1759335061366,-500.0,0.00022191,2]
[388723065,1759335061374,-1179.53,0.00022191,2]
[388723066,1759335061383,-1218.29,0.00022191,2]
[388723067,1759335061392,-500.0,0.00022191,2]
[388723068,1759335061401,-927.39,0.00022191,2]
[388723069,1759335061411,-896.28,0.00022191,2]
[388723070,1759335061421,-500.0,0.00022191,2]
[388723071,1759335061430,-500.0,0.00022191,2]
[388723072,1759335061439,-500.0,0.00022191,2]
[388723073,1759335061448,-500.0,0.00022191,2]
[388723074,1759335061457,-1845.75,0.00022191,2]
[388723075,1759335061468,-500.0,0.00022191,2]
[388723076,1759335061478,-500.0,0.00022191,2]
[388723077,1759335061487,-696.0,0.00022191,2]
[388723078,1759335061496,-1315.22,0.00022191,2]
[388723079,1759335061505,-500.0,0.00022191,2]
[388723080,1759335061514,-2639.23,0.00022191,2]
[388723081,1759335061523,-500.0,0.00022191,2]
[388723082,1759335061531,-504.31,0.00022191,2]
[388723083,1759335061541,-1397.47,0.00022191,2]
[388723084,1759335061550,-500.0,0.00022191,2]
[388723085,1759335061559,-786.61,0.00022191,2]
[388723086,1759335061567,-500.0,0.00022191,2]
[388723087,1759335061576,-6859.71,0.00022191,2]
[388723088,1759335061585,-500.0,0.00022191,2]
[388723089,1759335061594,-848.92,0.00022191,2]
[388723090,1759335061603,-1394.86,0.00022191,2]
[388723091,1759335061612,-818.92,0.00022191,2]
[388723092,1759335061621,-1705.81,0.00022191,2]
[388723093,1759335061630,-500.0,0.00022191,2]
[388723094,1759335061638,-500.0,0.00022191,2]
[388723095,1759335061647,-670.79,0.00022191,2]
[388723096,1759335061656,-857.73,0.00022191,2]
[388723097,1759335061665,-500.0,0.00022191,2]
[388723098,1759335061673,-643.98,0.00022191,2]
[388723099,1759335061824,-500.0,0.00022191,2]
[388723100,1759335061838,-1015.09,0.00022191,2]
[388723101,1759335061848,-500.0,0.00022191,2]
[388723102,1759335061857,-870.52,0.00022191,2]
[388723103,1759335061867,-610.48,0.00022191,2]
[388723104,1759335061876,-774.99,0.00022191,2]
[388723105,1759335061886,-500.0,0.00022191,2]
[388723106,1759335061895,-692.94,0.00022191,2]
[388723107,1759335061905,-500.0,0.00022191,2]
[388723108,1759335061916,-943.16,0.00022191,2]
[388723109,1759335061926,-500.0,0.00022191,2]
[388723110,1759335061935,-500.0,0.00022191,2]
[388723111,1759335061944,-500.0,0.00022191,2]
[388723112,1759335061953,-613.54,0.00022191,2]
[388723113,1759335061963,-1171.23,0.00022191,2]
[388723114,1759335061972,-1988.09,0.00022191,2]
[388723115,1759335061981,-1268.9,0.00022191,2]
[388723116,1759335061991,-696.81,0.00022191,2]
[388723117,1759335062000,-1090.51,0.00022191,2]
[388723118,1759335062010,-2196.17,0.00022191,2]
[388723119,1759335062019,-500.0,0.00022191,2]
[388723120,1759335062029,-3394.81,0.00022191,2]
[388723121,1759335062039,-952.1,0.00022191,2]
[388723122,1759335062049,-774.39,0.00022191,2]
[388723123,1759335062059,-556.67,0.00022191,2]
[388723124,1759335062069,-500.0,0.00022191,2]
[388723125,1759335062079,-863.24,0.00022191,2]
[388723126,1759335062088,-729.16,0.00022191,2]
[388723127,1759335062098,-1104.24,0.00022191,2]
[388723128,1759335062107,-2984.12,0.00022191,2]
[388723129,1759335062116,-1866.99,0.00022191,2]
[388723130,1759335062126,-1374.41,0.00022191,2]
[388723131,1759335062135,-500.0,0.00022191,2]
[388723132,1759335062145,-151.0,0.00022192,2]
[388723133,1759335062154,-487.0,0.00022192,2]
[388723134,1759335062164,-151.0,0.00022192,2]
[388723135,1759335062174,-151.0,0.00022192,2]
[388723136,1759335062183,-246.43139057,0.00022192,2]
[388723137,1759335062192,-3000.0,0.00022212,2]
[388723138,1759335062202,-168.0,0.00022277,2]
[388723139,1759335062212,-100000.0,0.000223,28]
[388723140,1759335062222,-297.0711174,0.00022384,2]
[388723141,1759335062231,-312.7848382,0.00022384,2]
[388723142,1759335062240,-1013.86,0.00022421,2]
[388723143,1759335062250,-2062.08,0.00022421,2]
[388723144,1759335062260,-500.0,0.00022421,2]
[388723145,1759335062270,-1521.58,0.00022421,2]
[388723146,1759335062279,-3500.0,0.0002246,2]
[388723147,1759335062288,-500.0,0.00022465,2]
[388723148,1759335062298,-500.0,0.00022465,2]
[388723149,1759335062307,-500.0,0.00022465,2]
[388723150,1759335062317,-684.19,0.00022465,2]
[388723151,1759335062326,-500.0,0.00022465,2]
[388723152,1759335062336,-500.0,0.00022465,2]
[388723153,1759335062346,-500.0,0.00022465,2]
[388723154,1759335062355,-905.05,0.00022465,2]
[388723155,1759335062365,-500.0,0.00022465,2]
[388723156,1759335062374,-602.37,0.00022465,2]
[388723157,1759335062384,-635.93,0.00022465,2]
[388723158,1759335062393,-625.0,0.00022465,2]
[388723159,1759335062403,-500.0,0.00022465,2]
[388723160,1759335062412,-500.0,0.00022465,2]
[388723161,1759335062421,-500.0,0.00022465,2]
[388723162,1759335062432,-539.8,0.00022465,2]
[388723163,1759335062441,-1062.22,0.00022465,2]
[388723164,1759335062451,-500.0,0.00022465,2]
[388723165,1759335062461,-1377.59,0.00022465,2]
[388723166,1759335062470,-428.26504149,0.00022465,2]
[388723167,1759335062480,-759.48,0.00022465,2]
[388723168,1759335062489,-500.0,0.00022465,2]
[388723169,1759335062499,-500.0,0.00022465,2]
[388723170,1759335062509,-500.0,0.00022465,2]
[388723171,1759335062518,-1321.83,0.00022465,2]
[388723172,1759335062528,-802.43,0.00022465,2]
[388723173,1759335062537,-500.0,0.00022465,2]
[388723174,1759335062546,-500.0,0.00022465,2]
[388723175,1759335062556,-646.41,0.00022465,2]
[388723176,1759335062566,-500.0,0.00022465,2]
[388723177,1759335062575,-1135.08,0.00022465,2]
[388723178,1759335062584,-712.18,0.00022465,2]
[388723179,1759335062594,-729.36,0.00022465,2]
[388723180,1759335062604,-500.0,0.00022465,2]
[388723181,1759335062614,-500.0,0.00022465,2]
[388723182,1759335062623,-700.69,0.00022465,2]
[388723183,1759335062632,-500.15,0.00022465,2]
[388723184,1759335062641,-500.0,0.00022465,2]
[388723185,1759335062650,-1425.73,0.00022465,2]
[388723186,1759335062659,-537.26,0.00022465,2]
[388723187,1759335062669,-500.0,0.00022465,2]
[388723188,1759335062679,-500.0,0.00022465,2]
[388723189,1759335062688,-500.0,0.00022465,2]
[388723190,1759335062700,-500.0,0.00022465,2]
[388723191,1759335062710,-3405.88,0.00022465,2]
[388723192,1759335062720,-500.0,0.00022465,2]
[388723193,1759335062729,-1179.53,0.00022465,2]
[388723194,1759335062739,-1218.29,0.00022465,2]
[388723195,1759335062749,-500.0,0.00022465,2]
[388723196,1759335062758,-927.39,0.00022465,2]
[388723197,1759335062768,-896.28,0.00022465,2]
[388723198,1759335062777,-500.0,0.00022465,2]
[388723199,1759335062787,-500.0,0.00022465,2]
[388723200,1759335062796,-500.0,0.00022465,2]
[388723201,1759335062807,-500.0,0.00022465,2]
[388723202,1759335062816,-1845.75,0.00022465,2]
[388723203,1759335062830,-500.0,0.00022465,2]
[388723204,1759335062840,-696.0,0.00022465,2]
[388723205,1759335062849,-1315.22,0.00022465,2]
[388723206,1759335062859,-500.0,0.00022465,2]
[388723207,1759335062869,-500.0,0.00022465,2]
[388723208,1759335062879,-2639.23,0.00022465,2]
[388723209,1759335062888,-500.0,0.00022465,2]
[388723210,1759335062898,-504.31,0.00022465,2]
[388723211,1759335062909,-1397.47,0.00022465,2]
[388723212,1759335062919,-500.0,0.00022465,2]
[388723213,1759335062929,-786.61,0.00022465,2]
[388723214,1759335062939,-500.0,0.00022465,2]
[388723215,1759335062948,-6859.71,0.00022465,2]
[388723216,1759335062957,-500.0,0.00022465,2]
[388723217,1759335062967,-848.92,0.00022465,2]
[388723218,1759335062977,-1394.86,0.00022465,2]
[388723219,1759335062986,-1705.81,0.00022465,2]
[388723220,1759335062996,-818.92,0.00022465,2]
[388723221,1759335063005,-500.0,0.00022465,2]
[388723222,1759335063015,-500.0,0.00022465,2]
[388723223,1759335063024,-670.79,0.00022465,2]
[388723224,1759335063033,-857.73,0.00022465,2]
[388723225,1759335063042,-500.0,0.00022465,2]
[388723226,1759335063052,-643.98,0.00022465,2]
[388723227,1759335063062,-500.0,0.00022465,2]
[388723228,1759335063071,-1015.09,0.00022465,2]
[388723229,1759335063080,-500.0,0.00022465,2]
[388723230,1759335063090,-870.52,0.00022465,2]
[388723231,1759335063099,-610.48,0.00022465,2]
[388723232,1759335063108,-774.99,0.00022465,2]
[388723233,1759335063119,-500.0,0.00022465,2]
[388723234,1759335063128,-692.94,0.00022465,2]
[388723235,1759335063137,-500.0,0.00022465,2]
[388723236,1759335063148,-943.16,0.00022465,2]
[388723237,1759335063158,-500.0,0.00022465,2]
[388723238,1759335063167,-500.0,0.00022465,2]
[388723239,1759335063177,-500.0,0.00022465,2]
[388723240,1759335063187,-613.54,0.00022465,2]
[388723241,1759335063196,-1171.23,0.00022465,2]
[388723242,1759335063205,-1988.09,0.00022465,2]
[388723243,1759335063216,-1268.9,0.00022465,2]
[388723244,1759335063226,-696.81,0.00022465,2]
[388723245,1759335063235,-1090.51,0.00022465,2]
[388723246,1759335063244,-2196.17,0.00022465,2]
[388723247,1759335063253,-500.0,0.00022465,2]
[388723248,1759335063263,-3394.81,0.00022465,2]
[388723249,1759335063273,-952.1,0.00022465,2]
[388723250,1759335063282,-774.39,0.00022465,2]